[Event "*** SCC Grand Prix: Titled Tuesday Blitz"]
[Site "Chess.com"]
[Date "2020.07.14"]
[Round "1"]
[White "dcremisi"]
[Black "CarlosAlbornoz"]
[Result "1/2-1/2"]
[WhiteElo "2423"]
[BlackElo "2806"]
[TimeControl "180+1"]
[EndTime "10:08:37 PDT"]
[Termination "Game drawn - insufficient material"]

1. d4 {[%clk 0:02:30.3]} 1... Nf6 {[%clk 0:02:59.8]} 2. Nf3 {[%clk 0:02:29.3]}
2... g6 {[%clk 0:02:59.8]} 3. c4 {[%clk 0:02:28.6]} 3... Bg7 {[%clk 0:02:59.9]}
4. Nc3 {[%clk 0:02:29.2]} 4... d6 {[%clk 0:03:00.1]} 5. e4 {[%clk 0:02:29.7]}
5... O-O {[%clk 0:02:59.7]} 6. Be2 {[%clk 0:02:30.3]} 6... Bg4 {[%clk
0:02:59.5]} 7. O-O {[%clk 0:02:29.6]} 7... Nfd7 {[%clk 0:02:58.2]} 8. Be3 {[%clk
0:02:28.8]} 8... Nc6 {[%clk 0:02:58.1]} 9. Qd2 {[%clk 0:02:15.9]} 9... Bxf3
{[%clk 0:02:57.1]} 10. Bxf3 {[%clk 0:02:15.1]} 10... e5 {[%clk 0:02:58]} 11.
dxe5 {[%clk 0:02:09.2]} 11... dxe5 {[%clk 0:02:58.5]} 12. Ne2 {[%clk 0:01:57.9]}
12... Qe7 {[%clk 0:02:44.6]} 13. Rad1 {[%clk 0:01:54.5]} 13... Nc5 {[%clk
0:02:44.3]} 14. Qc2 {[%clk 0:01:33.1]} 14... Ne6 {[%clk 0:02:43]} 15. Bg4 {[%clk
0:01:26.5]} 15... Ned4 {[%clk 0:02:41.8]} 16. Bxd4 {[%clk 0:01:26.6]} 16... exd4
{[%clk 0:02:40.3]} 17. f4 {[%clk 0:01:23.7]} 17... Rad8 {[%clk 0:02:27.7]} 18.
Nc1 {[%clk 0:01:14.7]} 18... d3 {[%clk 0:02:13.7]} 19. Nxd3 {[%clk 0:01:13.5]}
19... Qxe4 {[%clk 0:02:13.5]} 20. Bf3 {[%clk 0:01:09.7]} 20... Qe3+ {[%clk
0:02:10.6]} 21. Kh1 {[%clk 0:00:56.2]} 21... Nd4 {[%clk 0:02:10]} 22. Qd2 {[%clk
0:00:46.5]} 22... Qxd2 {[%clk 0:01:55.9]} 23. Rxd2 {[%clk 0:00:45.8]} 23... Nxf3
{[%clk 0:01:56.8]} 24. Rxf3 {[%clk 0:00:42.7]} 24... Rfe8 {[%clk 0:01:57]} 25.
Kg1 {[%clk 0:00:40.2]} 25... Re4 {[%clk 0:01:39.7]} 26. b3 {[%clk 0:00:34.3]}
26... Bc3 {[%clk 0:01:39.1]} 27. Rc2 {[%clk 0:00:32.6]} 27... Bd4+ {[%clk
0:01:25.6]} 28. Kf1 {[%clk 0:00:32.7]} 28... Be3 {[%clk 0:01:21.9]} 29. Nf2
{[%clk 0:00:21.3]} 29... Ree8 {[%clk 0:01:05.6]} 30. Re2 {[%clk 0:00:20.7]}
30... Bd4 {[%clk 0:01:02.8]} 31. Rxe8+ {[%clk 0:00:20.5]} 31... Rxe8 {[%clk
0:01:03.7]} 32. Nd3 {[%clk 0:00:19.9]} 32... c5 {[%clk 0:01:02.3]} 33. f5 {[%clk
0:00:19.9]} 33... g5 {[%clk 0:01:00.2]} 34. g4 {[%clk 0:00:19.6]} 34... Kg7
{[%clk 0:00:57.3]} 35. h3 {[%clk 0:00:19.6]} 35... Re4 {[%clk 0:00:54.3]} 36.
Ne1 {[%clk 0:00:19.6]} 36... h5 {[%clk 0:00:46.6]} 37. gxh5 {[%clk 0:00:18.9]}
37... Rh4 {[%clk 0:00:46.7]} 38. Nc2 {[%clk 0:00:18.2]} 38... Be5 {[%clk
0:00:40.5]} 39. Ne3 {[%clk 0:00:18.5]} 39... Rxh5 {[%clk 0:00:39.5]} 40. Ng4
{[%clk 0:00:18.8]} 40... Bd4 {[%clk 0:00:39]} 41. a3 {[%clk 0:00:18]} 41... Rh8
{[%clk 0:00:37]} 42. b4 {[%clk 0:00:18.5]} 42... Re8 {[%clk 0:00:36.4]} 43. bxc5
{[%clk 0:00:18.7]} 43... Bxc5 {[%clk 0:00:36.4]} 44. Rd3 {[%clk 0:00:18.4]}
44... Re4 {[%clk 0:00:34]} 45. Rd7 {[%clk 0:00:18.4]} 45... Rf4+ {[%clk
0:00:30.8]} 46. Ke2 {[%clk 0:00:17.5]} 46... Rxf5 {[%clk 0:00:30.3]} 47. Rxb7
{[%clk 0:00:17.7]} 47... Rf4 {[%clk 0:00:28.6]} 48. Kd3 {[%clk 0:00:14.5]} 48...
Rf3+ {[%clk 0:00:24.8]} 49. Ke4 {[%clk 0:00:14.9]} 49... Rxh3 {[%clk 0:00:20.4]}
50. Ne5 {[%clk 0:00:15.2]} 50... Rh4+ {[%clk 0:00:19.6]} 51. Kd5 {[%clk
0:00:15.6]} 51... Bxa3 {[%clk 0:00:17.3]} 52. Rxf7+ {[%clk 0:00:15.8]} 52... Kh6
{[%clk 0:00:15.4]} 53. Rxa7 {[%clk 0:00:16.2]} 53... Bb2 {[%clk 0:00:12]} 54.
Nf7+ {[%clk 0:00:15]} 54... Kh5 {[%clk 0:00:11.8]} 55. c5 {[%clk 0:00:14.1]}
55... Rd4+ {[%clk 0:00:12.1]} 56. Ke6 {[%clk 0:00:14.5]} 56... Re4+ {[%clk
0:00:11.6]} 57. Kd5 {[%clk 0:00:14.4]} 57... Rf4 {[%clk 0:00:11.6]} 58. Nd6
{[%clk 0:00:14.4]} 58... g4 {[%clk 0:00:11]} 59. c6 {[%clk 0:00:14.7]} 59...
Rd4+ {[%clk 0:00:10]} 60. Ke6 {[%clk 0:00:14.6]} 60... g3 {[%clk 0:00:09.6]} 61.
c7 {[%clk 0:00:14.5]} 61... g2 {[%clk 0:00:05.7]} 62. c8=Q {[%clk 0:00:14]}
62... Rg4 {[%clk 0:00:04.9]} 63. Qe8+ {[%clk 0:00:12.4]} 63... Kh4 {[%clk
0:00:04.6]} 64. Rh7+ {[%clk 0:00:12.4]} 64... Kg3 {[%clk 0:00:04.9]} 65. Nf5+
{[%clk 0:00:11.7]} 65... Kf2 {[%clk 0:00:04.1]} 66. Rh2 {[%clk 0:00:09.3]} 66...
Re4+ {[%clk 0:00:03.9]} 67. Kf7 {[%clk 0:00:09.7]} 67... Rxe8 {[%clk 0:00:03.8]}
68. Kxe8 {[%clk 0:00:10.3]} 68... Be5 {[%clk 0:00:03.1]} 69. Nh4 {[%clk
0:00:03.9]} 69... Bxh2 {[%clk 0:00:01.1]} 70. Nxg2 {[%clk 0:00:04.4]} 1/2-1/2

[Event "*** SCC Grand Prix: Titled Tuesday Blitz"]
[Site "Chess.com"]
[Date "2020.07.14"]
[Round "1"]
[White "TimofeevAr"]
[Black "crossingthestreet"]
[Result "1-0"]
[WhiteElo "2794"]
[BlackElo "2402"]
[TimeControl "180+1"]
[EndTime "10:08:40 PDT"]
[Termination "TimofeevAr won by checkmate"]

1. c4 {[%clk 0:03:00.2]} 1... e5 {[%clk 0:02:59.4]} 2. e3 {[%clk 0:02:59.8]}
2... Nc6 {[%clk 0:02:59.3]} 3. Nc3 {[%clk 0:02:59.1]} 3... a6 {[%clk 0:02:56.5]}
4. g3 {[%clk 0:02:56.7]} 4... Bc5 {[%clk 0:02:53]} 5. Bg2 {[%clk 0:02:56]} 5...
d6 {[%clk 0:02:52.4]} 6. Nge2 {[%clk 0:02:55.3]} 6... Ba7 {[%clk 0:02:48.4]} 7.
O-O {[%clk 0:02:54.7]} 7... h5 {[%clk 0:02:47.9]} 8. h3 {[%clk 0:02:45.1]} 8...
h4 {[%clk 0:02:46.4]} 9. g4 {[%clk 0:02:45.3]} 9... f5 {[%clk 0:02:43.3]} 10.
gxf5 {[%clk 0:02:40.6]} 10... Bxf5 {[%clk 0:02:44.2]} 11. f4 {[%clk 0:02:40.9]}
11... Qd7 {[%clk 0:02:33.4]} 12. Kh2 {[%clk 0:02:40.4]} 12... Nh6 {[%clk
0:02:27.2]} 13. d4 {[%clk 0:02:18.1]} 13... exd4 {[%clk 0:02:04]} 14. Nxd4
{[%clk 0:02:17.5]} 14... Nxd4 {[%clk 0:02:00]} 15. exd4 {[%clk 0:02:17.5]} 15...
O-O-O {[%clk 0:01:58]} 16. Be3 {[%clk 0:02:13.4]} 16... Rde8 {[%clk 0:01:53]}
17. Bg1 {[%clk 0:02:09.2]} 17... Rhg8 {[%clk 0:01:37.1]} 18. Qf3 {[%clk
0:02:03.5]} 18... c6 {[%clk 0:01:33.3]} 19. Rae1 {[%clk 0:01:58.4]} 19... g5
{[%clk 0:01:30.6]} 20. Rxe8+ {[%clk 0:01:57.1]} 20... Qxe8 {[%clk 0:01:30.8]}
21. fxg5 {[%clk 0:01:54.9]} 21... Rxg5 {[%clk 0:01:28.7]} 22. Bf2 {[%clk
0:01:47.7]} 22... Rg6 {[%clk 0:01:13.5]} 23. Re1 {[%clk 0:01:41.6]} 23... Qd7
{[%clk 0:01:09]} 24. Bxh4 {[%clk 0:01:30.6]} 24... Bxd4 {[%clk 0:01:05.6]} 25.
Re7 {[%clk 0:01:30.6]} 25... Qd8 {[%clk 0:00:35.1]} 26. Qe2 {[%clk 0:01:19.3]}
26... Be5+ {[%clk 0:00:19.2]} 27. Kh1 {[%clk 0:01:11.2]} 27... Qf8 {[%clk
0:00:18.8]} 28. c5 {[%clk 0:01:04.7]} 28... Bd7 {[%clk 0:00:18]} 29. Na4 {[%clk
0:00:47.3]} 29... Qf4 {[%clk 0:00:11.7]} 30. Nb6+ {[%clk 0:00:44]} 30... Kb8
{[%clk 0:00:11]} 31. Nxd7+ {[%clk 0:00:44.1]} 31... Ka7 {[%clk 0:00:11.2]} 32.
Nxe5 {[%clk 0:00:44.4]} 32... dxe5 {[%clk 0:00:10.2]} 33. Bf2 {[%clk 0:00:37.2]}
33... Nf5 {[%clk 0:00:09.6]} 34. Rxe5 {[%clk 0:00:35.5]} 34... Nh4 {[%clk
0:00:07.4]} 35. Bxh4 {[%clk 0:00:31.4]} 35... Qxh4 {[%clk 0:00:08.3]} 36. Re4
{[%clk 0:00:30.3]} 36... Qf6 {[%clk 0:00:07.2]} 37. Rg4 {[%clk 0:00:28.9]} 37...
Rh6 {[%clk 0:00:06.1]} 38. b4 {[%clk 0:00:26.7]} 38... Qa1+ {[%clk 0:00:05.2]}
39. Kh2 {[%clk 0:00:27]} 39... Rf6 {[%clk 0:00:05.6]} 40. Re4 {[%clk 0:00:23]}
40... Qc3 {[%clk 0:00:05.2]} 41. Qe3 {[%clk 0:00:20.6]} 41... Qc2 {[%clk
0:00:04.9]} 42. Re7 {[%clk 0:00:19.7]} 42... Rf2 {[%clk 0:00:04.7]} 43. Qg3
{[%clk 0:00:19]} 43... Qd2 {[%clk 0:00:04.9]} 44. Rg7 {[%clk 0:00:16.4]} 44...
Qc2 {[%clk 0:00:04.9]} 45. Qc7 {[%clk 0:00:16.1]} 45... Rxg2+ {[%clk 0:00:05.1]}
46. Rxg2 {[%clk 0:00:16]} 46... Qe4 {[%clk 0:00:05.6]} 47. Qg3 {[%clk
0:00:15.6]} 47... Qe6 {[%clk 0:00:05.1]} 48. h4 {[%clk 0:00:15.9]} 48... Qd5
{[%clk 0:00:06]} 49. Qg4 {[%clk 0:00:15.6]} 49... Qf7 {[%clk 0:00:05.6]} 50. Kh3
{[%clk 0:00:15.7]} 50... Qd5 {[%clk 0:00:06.1]} 51. h5 {[%clk 0:00:16]} 51...
Qd3+ {[%clk 0:00:07]} 52. Rg3 {[%clk 0:00:16]} 52... Qd8 {[%clk 0:00:07.9]} 53.
Qg5 {[%clk 0:00:15.7]} 53... Qh8 {[%clk 0:00:08.8]} 54. Kh4 {[%clk 0:00:15.9]}
54... Qh7 {[%clk 0:00:09.7]} 55. Rg4 {[%clk 0:00:16.2]} 55... Qb1 {[%clk
0:00:09.7]} 56. h6 {[%clk 0:00:16]} 56... Qh1+ {[%clk 0:00:10.2]} 57. Kg3 {[%clk
0:00:16.3]} 57... Qg1+ {[%clk 0:00:10.5]} 58. Kf4 {[%clk 0:00:16.7]} 58... Qf2+
{[%clk 0:00:10.9]} 59. Ke5 {[%clk 0:00:16.9]} 59... Qb2+ {[%clk 0:00:10]} 60.
Ke6 {[%clk 0:00:16.9]} 60... Qe2+ {[%clk 0:00:10.2]} 61. Kf7 {[%clk 0:00:17.1]}
61... Qf3+ {[%clk 0:00:09]} 62. Kg8 {[%clk 0:00:16.9]} 62... Qc3 {[%clk
0:00:05.3]} 63. h7 {[%clk 0:00:16.8]} 63... Qd3 {[%clk 0:00:04.5]} 64. h8=Q
{[%clk 0:00:16.7]} 64... Qd7 {[%clk 0:00:04.8]} 65. Qhg7 {[%clk 0:00:16.1]}
65... Qe8+ {[%clk 0:00:05.3]} 66. Qf8 {[%clk 0:00:15.9]} 66... Qe6+ {[%clk
0:00:05.8]} 67. Qf7 {[%clk 0:00:16.2]} 67... Qc8+ {[%clk 0:00:05]} 68. Kg7
{[%clk 0:00:15.6]} 68... Qe8 {[%clk 0:00:05.2]} 69. Qxe8 {[%clk 0:00:14.7]}
69... a5 {[%clk 0:00:06.1]} 70. bxa5 {[%clk 0:00:13.7]} 70... Ka6 {[%clk
0:00:06.3]} 71. Qgd8 {[%clk 0:00:13.8]} 71... b6 {[%clk 0:00:07.2]} 72. Qxb6#
{[%clk 0:00:13.8]} 1-0

[Event "*** SCC Grand Prix: Titled Tuesday Blitz"]
[Site "Chess.com"]
[Date "2020.07.14"]
[Round "1"]
[White "malandragem"]
[Black "ChessLover0108"]
[Result "0-1"]
[WhiteElo "2352"]
[BlackElo "2681"]
[TimeControl "180+1"]
[EndTime "10:08:44 PDT"]
[Termination "ChessLover0108 won by resignation"]

1. e4 {[%clk 0:03:00.9]} 1... d5 {[%clk 0:02:58]} 2. exd5 {[%clk 0:03:00.4]}
2... Qxd5 {[%clk 0:02:58.9]} 3. Nc3 {[%clk 0:03:00.9]} 3... Qd8 {[%clk
0:02:59.2]} 4. d4 {[%clk 0:03:01.2]} 4... c6 {[%clk 0:02:59.4]} 5. Nf3 {[%clk
0:03:01.3]} 5... Bg4 {[%clk 0:02:59.6]} 6. Be2 {[%clk 0:02:59.8]} 6... e6 {[%clk
0:02:58.4]} 7. h3 {[%clk 0:03:00.2]} 7... Bxf3 {[%clk 0:02:57.5]} 8. Bxf3 {[%clk
0:03:00.1]} 8... Nf6 {[%clk 0:02:58.4]} 9. O-O {[%clk 0:02:59.4]} 9... Be7
{[%clk 0:02:56.4]} 10. Re1 {[%clk 0:02:57.4]} 10... Nbd7 {[%clk 0:02:55.9]} 11.
Qe2 {[%clk 0:02:56.9]} 11... O-O {[%clk 0:02:52.8]} 12. Bf4 {[%clk 0:02:43]}
12... Re8 {[%clk 0:02:51.2]} 13. Rad1 {[%clk 0:02:42.8]} 13... h6 {[%clk
0:02:49.2]} 14. a3 {[%clk 0:02:43]} 14... Nb6 {[%clk 0:02:42.6]} 15. Ne4 {[%clk
0:02:38.3]} 15... Nxe4 {[%clk 0:02:40.6]} 16. Bxe4 {[%clk 0:02:38.1]} 16... Nd5
{[%clk 0:02:41.5]} 17. Bc1 {[%clk 0:02:36]} 17... Bg5 {[%clk 0:02:40.6]} 18.
Bxg5 {[%clk 0:02:10.9]} 18... Qxg5 {[%clk 0:02:41.5]} 19. g3 {[%clk 0:01:58.9]}
19... Rad8 {[%clk 0:02:40.2]} 20. Kh2 {[%clk 0:01:52.3]} 20... Nf6 {[%clk
0:02:38.8]} 21. Bd3 {[%clk 0:01:50.3]} 21... Rd7 {[%clk 0:02:33.8]} 22. Qf3
{[%clk 0:01:17.7]} 22... Red8 {[%clk 0:02:24.5]} 23. Re5 {[%clk 0:01:17.1]}
23... Rxd4 {[%clk 0:02:13.7]} 24. Rxg5 {[%clk 0:01:15.8]} 24... hxg5 {[%clk
0:02:14.6]} 25. Qe3 {[%clk 0:01:11.1]} 25... c5 {[%clk 0:02:00.2]} 26. Re1
{[%clk 0:00:49.4]} 26... c4 {[%clk 0:01:58.8]} 27. Bf1 {[%clk 0:00:49.5]} 27...
g4 {[%clk 0:01:50.5]} 28. c3 {[%clk 0:00:39.9]} 28... Rd2 {[%clk 0:01:44.9]} 29.
Re2 {[%clk 0:00:39.5]} 29... Rd1 {[%clk 0:01:44.5]} 30. Bg2 {[%clk 0:00:38.1]}
30... gxh3 {[%clk 0:01:42.2]} 31. Bxh3 {[%clk 0:00:37.5]} 31... b6 {[%clk
0:01:41.4]} 32. Qf4 {[%clk 0:00:22.4]} 32... b5 {[%clk 0:01:28]} 33. a4 {[%clk
0:00:22.4]} 33... a6 {[%clk 0:01:20.8]} 34. axb5 {[%clk 0:00:21]} 34... axb5
{[%clk 0:01:21.7]} 35. Qc7 {[%clk 0:00:14.8]} 35... R8d2 {[%clk 0:01:04.2]} 36.
Rxd2 {[%clk 0:00:10.6]} 36... Rxd2 {[%clk 0:01:05.1]} 37. Qb8+ {[%clk
0:00:11.5]} 37... Kh7 {[%clk 0:01:04.6]} 38. Qxb5 {[%clk 0:00:12.4]} 38... Rxf2+
{[%clk 0:01:04]} 39. Kg1 {[%clk 0:00:13.1]} 39... Rd2 {[%clk 0:01:00.8]} 40.
Qxc4 {[%clk 0:00:07.5]} 40... Rxb2 {[%clk 0:01:00]} 41. Qh4+ {[%clk 0:00:08.1]}
41... Kg8 {[%clk 0:00:58.6]} 42. c4 {[%clk 0:00:09]} 42... Rc2 {[%clk
0:00:56.4]} 43. Qd4 {[%clk 0:00:09.1]} 43... Rc1+ {[%clk 0:00:41.3]} 44. Bf1
{[%clk 0:00:07.4]} 44... Kh7 {[%clk 0:00:16.9]} 45. Kf2 {[%clk 0:00:07.7]} 45...
Rc2+ {[%clk 0:00:15.6]} 46. Be2 {[%clk 0:00:08]} 46... Rc1 {[%clk 0:00:14.6]}
47. Ke3 {[%clk 0:00:04.5]} 47... Kg8 {[%clk 0:00:05.9]} 48. Kd2 {[%clk
0:00:04.8]} 48... Rh1 {[%clk 0:00:03.4]} 49. g4 {[%clk 0:00:05.1]} 49... Rh2
{[%clk 0:00:02.8]} 50. g5 {[%clk 0:00:04.5]} 50... Nh5 {[%clk 0:00:03]} 51. c5
{[%clk 0:00:04.4]} 51... Ng3 {[%clk 0:00:03.1]} 52. Qe3 {[%clk 0:00:04.7]} 52...
Nf1+ {[%clk 0:00:02.6]} 53. Kd3 {[%clk 0:00:04.2]} 53... Nxe3 {[%clk 0:00:03.5]}
54. Kxe3 {[%clk 0:00:04.8]} 54... Rh1 {[%clk 0:00:02.4]} 55. Kd4 {[%clk
0:00:05.1]} 55... Rc1 {[%clk 0:00:02.1]} 56. Bc4 {[%clk 0:00:05]} 56... Kf8
{[%clk 0:00:03]} 57. c6 {[%clk 0:00:05.2]} 57... Ke7 {[%clk 0:00:03.9]} 58. Bb5
{[%clk 0:00:02.5]} 58... Kd6 {[%clk 0:00:03.9]} 59. g6 {[%clk 0:00:03.4]} 59...
e5+ {[%clk 0:00:04.6]} 60. Ke4 {[%clk 0:00:03.2]} 60... fxg6 {[%clk 0:00:05.5]}
61. c7 {[%clk 0:00:03]} 61... Rxc7 {[%clk 0:00:06.3]} 62. Be8 {[%clk 0:00:03.5]}
62... Rc4+ {[%clk 0:00:06]} 63. Kf3 {[%clk 0:00:03.7]} 63... Rf4+ {[%clk
0:00:06.1]} 64. Kg3 {[%clk 0:00:03.9]} 64... g5 {[%clk 0:00:07]} 0-1

[Event "*** SCC Grand Prix: Titled Tuesday Blitz"]
[Site "Chess.com"]
[Date "2020.07.14"]
[Round "1"]
[White "stolencandy13"]
[Black "Msb2"]
[Result "1/2-1/2"]
[WhiteElo "2440"]
[BlackElo "2881"]
[TimeControl "180+1"]
[EndTime "10:08:45 PDT"]
[Termination "Game drawn - insufficient material"]

1. e4 {[%clk 0:02:59.4]} 1... e6 {[%clk 0:02:59.8]} 2. d4 {[%clk 0:02:59.3]}
2... d5 {[%clk 0:03:00.5]} 3. Nd2 {[%clk 0:02:58.7]} 3... c5 {[%clk 0:03:00.2]}
4. exd5 {[%clk 0:02:57.7]} 4... Qxd5 {[%clk 0:03:01.1]} 5. dxc5 {[%clk
0:02:53.1]} 5... Nf6 {[%clk 0:03:00.9]} 6. Ngf3 {[%clk 0:02:53]} 6... Qxc5
{[%clk 0:02:59.7]} 7. Bd3 {[%clk 0:02:51.8]} 7... Nbd7 {[%clk 0:02:59.7]} 8. O-O
{[%clk 0:02:51.6]} 8... Qc7 {[%clk 0:03:00.4]} 9. Qe2 {[%clk 0:02:51.9]} 9...
Nc5 {[%clk 0:03:00.8]} 10. Bc4 {[%clk 0:02:45.5]} 10... Bd6 {[%clk 0:03:00.3]}
11. b3 {[%clk 0:02:33.4]} 11... a6 {[%clk 0:02:51.8]} 12. a4 {[%clk 0:02:32.4]}
12... O-O {[%clk 0:02:43.5]} 13. Bb2 {[%clk 0:02:32.5]} 13... Re8 {[%clk
0:02:42.4]} 14. Rad1 {[%clk 0:02:31.2]} 14... e5 {[%clk 0:02:38.8]} 15. Ng5
{[%clk 0:02:23.8]} 15... Ne6 {[%clk 0:02:37]} 16. Nde4 {[%clk 0:02:18.4]} 16...
Nxe4 {[%clk 0:02:29]} 17. Nxe4 {[%clk 0:02:15.8]} 17... Bf8 {[%clk 0:02:12.2]}
18. Qg4 {[%clk 0:01:58.9]} 18... Kh8 {[%clk 0:02:02.2]} 19. Qh5 {[%clk
0:01:53.3]} 19... Nf4 {[%clk 0:01:19.3]} 20. Qxf7 {[%clk 0:01:50.1]} 20... Qxf7
{[%clk 0:01:19.2]} 21. Bxf7 {[%clk 0:01:51]} 21... Re7 {[%clk 0:01:20.1]} 22.
Bc4 {[%clk 0:01:48.6]} 22... Bf5 {[%clk 0:01:19.2]} 23. Rfe1 {[%clk 0:01:44.8]}
23... Bg6 {[%clk 0:01:10.2]} 24. g3 {[%clk 0:01:20.6]} 24... Ne6 {[%clk
0:01:07.4]} 25. Bxe5 {[%clk 0:01:16.7]} 25... Bxe4 {[%clk 0:01:06.1]} 26. Rxe4
{[%clk 0:01:13.7]} 26... Ng5 {[%clk 0:01:05.5]} 27. Rde1 {[%clk 0:00:59.9]}
27... Rae8 {[%clk 0:00:52.3]} 28. f4 {[%clk 0:00:58.9]} 28... Nxe4 {[%clk
0:00:41.8]} 29. Rxe4 {[%clk 0:00:58.3]} 29... h6 {[%clk 0:00:41.9]} 30. Rd4
{[%clk 0:00:52.6]} 30... Rxe5 {[%clk 0:00:40.9]} 31. fxe5 {[%clk 0:00:46.9]}
31... Bc5 {[%clk 0:00:40.3]} 32. c3 {[%clk 0:00:47]} 32... Rxe5 {[%clk
0:00:39.9]} 33. Kg2 {[%clk 0:00:41.6]} 33... Bxd4 {[%clk 0:00:39.5]} 34. cxd4
{[%clk 0:00:41.8]} 34... Re1 {[%clk 0:00:38.6]} 35. a5 {[%clk 0:00:37.5]} 35...
g5 {[%clk 0:00:28.9]} 36. Bd5 {[%clk 0:00:35.3]} 36... Re7 {[%clk 0:00:28.7]}
37. h4 {[%clk 0:00:29.7]} 37... Kg7 {[%clk 0:00:17.4]} 38. Kf3 {[%clk
0:00:29.8]} 38... Kg6 {[%clk 0:00:15.9]} 39. Be4+ {[%clk 0:00:29.1]} 39... Kf6
{[%clk 0:00:16.1]} 40. hxg5+ {[%clk 0:00:27.9]} 40... hxg5 {[%clk 0:00:16.6]}
41. Ke3 {[%clk 0:00:27.9]} 41... Ke6 {[%clk 0:00:15.8]} 42. Kd3 {[%clk
0:00:27.8]} 42... Kd6 {[%clk 0:00:16.3]} 43. g4 {[%clk 0:00:26.9]} 43... Kc7
{[%clk 0:00:16.4]} 44. Kc4 {[%clk 0:00:26.6]} 44... Re6 {[%clk 0:00:14.6]} 45.
Bf5 {[%clk 0:00:19.7]} 45... Rh6 {[%clk 0:00:14.5]} 46. d5 {[%clk 0:00:19.6]}
46... Kd6 {[%clk 0:00:14]} 47. Be6 {[%clk 0:00:18.3]} 47... Rh1 {[%clk
0:00:13.5]} 48. b4 {[%clk 0:00:18.6]} 48... Rd1 {[%clk 0:00:13]} 49. Kc3 {[%clk
0:00:18.8]} 49... Rg1 {[%clk 0:00:12.5]} 50. Kc4 {[%clk 0:00:19]} 50... Rg2
{[%clk 0:00:10.4]} 51. Kd4 {[%clk 0:00:17.3]} 51... Rc2 {[%clk 0:00:10.4]} 52.
Kd3 {[%clk 0:00:16.7]} 52... Rc1 {[%clk 0:00:10.7]} 53. Kd4 {[%clk 0:00:16.8]}
53... Rd1+ {[%clk 0:00:10.8]} 54. Kc4 {[%clk 0:00:17]} 54... Rd2 {[%clk
0:00:10.3]} 55. Bf7 {[%clk 0:00:16.5]} 55... Re2 {[%clk 0:00:08.7]} 56. Be6
{[%clk 0:00:16.4]} 56... Re4+ {[%clk 0:00:09.3]} 57. Kc3 {[%clk 0:00:15.8]}
57... Rf4 {[%clk 0:00:09.8]} 58. Kb3 {[%clk 0:00:14.1]} 58... Ke5 {[%clk
0:00:09.7]} 59. Kc3 {[%clk 0:00:14]} 59... Rd4 {[%clk 0:00:09.7]} 60. Kb3 {[%clk
0:00:11.8]} 60... Rxd5 {[%clk 0:00:09.2]} 61. Bxd5 {[%clk 0:00:12.7]} 61... Kxd5
{[%clk 0:00:10.1]} 62. Kc3 {[%clk 0:00:13.1]} 62... Ke4 {[%clk 0:00:10.6]} 63.
Kc4 {[%clk 0:00:13.4]} 63... Kf4 {[%clk 0:00:11.3]} 64. Kc5 {[%clk 0:00:13.9]}
64... Kxg4 {[%clk 0:00:11.9]} 65. Kb6 {[%clk 0:00:14.5]} 65... Kf5 {[%clk
0:00:11.6]} 66. Kxb7 {[%clk 0:00:15.4]} 66... g4 {[%clk 0:00:12.3]} 67. b5
{[%clk 0:00:15.3]} 67... axb5 {[%clk 0:00:08]} 68. a6 {[%clk 0:00:15.6]} 68...
g3 {[%clk 0:00:08.3]} 69. a7 {[%clk 0:00:16.2]} 69... g2 {[%clk 0:00:09.2]} 70.
a8=Q {[%clk 0:00:16.4]} 70... g1=Q {[%clk 0:00:10.1]} 71. Qf8+ {[%clk
0:00:15.4]} 71... Ke6 {[%clk 0:00:07.6]} 72. Qe8+ {[%clk 0:00:14.5]} 72... Kd6
{[%clk 0:00:07.8]} 73. Qc6+ {[%clk 0:00:13.5]} 73... Ke7 {[%clk 0:00:07.1]} 74.
Qxb5 {[%clk 0:00:13.4]} 74... Qg2+ {[%clk 0:00:06.8]} 75. Qc6 {[%clk 0:00:13.3]}
75... Qb2+ {[%clk 0:00:06.7]} 76. Qb6 {[%clk 0:00:13.7]} 76... Qe5 {[%clk
0:00:04.7]} 77. Qc7+ {[%clk 0:00:13.1]} 77... Ke6 {[%clk 0:00:05.1]} 78. Qxe5+
{[%clk 0:00:12.6]} 78... Kxe5 {[%clk 0:00:06]} 1/2-1/2